[Event "ONJK-A 2019"]
[Site "Borne"]
[Date "2019.08.05"]
[Round "1.1"]
[White "Maerevoet, Sim"]
[Black "Albers, Sasa"]
[Result "1-0"]
[ECO "E17"]
[WhiteElo "2321"]
[BlackElo "1889"]
[Annotator "NA RC"]
[PlyCount "71"]
[EventDate "2019.08.05"]
[EventType "swiss"]
[EventCountry "NED"]
[TimeControl "5400+30"]

1. d4 {[%emt 0:00:00]} Nf6 {[%emt 0:00:00]} 2. c4 {[%emt 0:00:00]} e6 {[%emt 0:00:00]} 3. Nf3 {[%emt 0:00:00]} b6 {[%emt 0:00:00]} 4. g3 {[%emt 0:00:05]} Bb7 {[%emt 0:00:00]} 5. Bg2 {[%emt 0:00:01]} Be7 {[%emt 0:00:48]} 6. O-O {[%emt 0:00:09]} O-O {[%emt 0:00:03]} 7. Re1 {[%emt 0:00:07]} Qc8 {[%emt 0:03:43]} 8. Bg5 {[%emt 0:11:23]} Bb4 {[%emt 0:17:59]} 9. Bxf6 {[%emt 0:01:59]} Bxe1 {[%emt 0:00:48]} 10. Be7 {[%emt 0:00:16]} Re8 {[%emt 0:00:12]} 11. Ba3 {[%emt 0:00:08]} Bxf2+ {[%emt 0:00:35]} 12. Kxf2 {[%emt 0:00:08]} d6 {[%emt 0:02:13]} 13. Nc3 {[%emt 0:04:59]} Nd7 {[%emt 0:02:40]} 14. Kg1 {[%emt 0:04:05]} Nf6 {[%emt 0:06:18]} 15. Qc2 {[%emt 0:05:19]} e5 {[%emt 0:04:25]} 16. d5 {[%emt 0:02:56]} Qd8 {[%emt 0:01:39]} 17. e4 {[%emt 0:01:52]} Bc8 {[%emt 0:00:26]} 18. Rf1 {[%emt 0:03:44]} a5 {[%emt 0:05:15]} 19. b3 {[%emt 0:03:17]} Nd7 {[%emt 0:01:51]} 20. Bh3 {[%emt 0:04:13]} Nc5 {[%emt 0:01:22]} 21. Bxc8 {[%emt 0:01:51]} Rxc8 {[%emt 0:00:38]} 22. Nh4 {[%emt 0:05:05]} Qd7 {[%emt 0:06:04]} 23. Nf5 {[%emt 0:05:39]} Rf8 {[%emt 0:02:33]} 24. Qf2 {[%emt 0:01:14]} f6 {[%emt 0:01:16]} 25. Bxc5 {[%emt 0:03:48]} bxc5 {[%emt 0:00:11]} 26. g4 {[%emt 0:04:59]} g6 {[%emt 0:03:32]} 27. Ne3 {[%emt 0:00:07]} Kg7 {[%emt 0:01:55]} 28. Kg2 {[%emt 0:01:42]} Qe7 {[%emt 0:01:04]} 29. h4 {[%emt 0:01:12]} Qd7 {[%emt 0:07:02]} 30. h5 {[%emt 0:02:38]} Qe7 {[%emt 0:05:37]} 31. Qh4 {[%emt 0:00:33]} Ra8 {[%emt 0:04:28]} 32. Rh1 {[%emt 0:08:32]} Rh8 {[%emt 0:00:54]} 33. h6+ {[%emt 0:00:06]} Kg8 {[%emt 0:00:39]} 34. Rf1 {[%emt 0:00:08]} Rf8 {[%emt 0:00:02]} 35. Nb5 {[%emt 0:00:23]} Rf7 {[%emt 0:03:41]} 36. Na7 {[%emt 0:00:28]} 1-0

[Event "ONJK-A 2019"]
[Site "Borne"]
[Date "2019.08.05"]
[Round "1.2"]
[White "De Bock, Thijs"]
[Black "Hilwerda, Jonas"]
[Result "1/2-1/2"]
[ECO "A26"]
[WhiteElo "1870"]
[BlackElo "2275"]
[Annotator "NA"]
[PlyCount "278"]
[EventDate "2019.08.05"]
[EventType "swiss"]
[EventCountry "NED"]
[SourceTitle "playchess.com"]
[Source "ChessBase"]
[SourceQuality "1"]
[TimeControl "5400+30"]

1. c4 {[%emt 0:00:00]} e5 {[%emt 0:00:50]} 2. g3 {[%emt 0:00:00]} Nc6 {[%emt 0:00:15]} 3. Bg2 {[%emt 0:00:00]} g6 {[%emt 0:00:08]} 4. Nc3 {[%emt 0:00:00]} Bg7 {[%emt 0:00:07]} 5. Nf3 {[%emt 0:00:00]} d6 {[%emt 0:05:15]} 6. O-O {[%emt 0:00:18]} Nge7 {[%emt 0:02:51]} 7. d3 {[%emt 0:01:05]} O-O {[%emt 0:01:12]} 8. Nd5 {[%emt 0:00:43]} Nxd5 {[%emt 0:03:04]} 9. cxd5 {[%emt 0:00:06]} Ne7 {[%emt 0:00:12]} 10. Qb3 {[%emt 0:09:02]} c6 {[%emt 0:03:07]} 11. dxc6 {[%emt 0:02:33]} bxc6 {[%emt 0:00:47]} 12. Qa3 {[%emt 0:03:05]} h6 {[%emt 0:11:24]} 13. Bd2 {[%emt 0:04:15]} a5 {[%emt 0:03:45]} 14. Bb4 {[%emt 0:03:26]} c5 {[%emt 0:04:20]} 15. Bc3 {[%emt 0:00:06]} Bb7 {[%emt 0:02:23]} 16. Ne1 {[%emt 0:02:55]} Qd7 {[%emt 0:07:23]} 17. Bxb7 {[%emt 0:03:47]} Qxb7 {[%emt 0:00:03]} 18. Ng2 {[%emt 0:03:39]} Rfc8 {[%emt 0:02:28]} 19. f4 {[%emt 0:03:24]} Nd5 {[%emt 0:12:43]} 20. e4 {[%emt 0:05:18]} Nb4 {[%emt 0:05:15]} 21. Qb3 {[%emt 0:03:58]} c4 {[%emt 0:13:36]} 22. dxc4 {[%emt 0:02:23]} Qxe4 {[%emt 0:00:04]} 23. fxe5 {[%emt 0:07:24]} dxe5 {[%emt 0:02:56]} 24. c5 {[%emt 0:01:05]} Qd5 {[%emt 0:02:08]} 25. Bxb4 {[%emt 0:01:08]} Qxb3 {[%emt 0:02:11]} 26. axb3 {[%emt 0:00:06]} axb4 {[%emt 0:00:04]} 27. Rxa8 {[%emt 0:00:37]} Rxa8 {[%emt 0:00:02]} 28. Rc1 {[%emt 0:02:39]} Rc8 {[%emt 0:02:06]} 29. Ne3 {[%emt 0:00:53]} Rc6 {[%emt 0:02:42]} 30. Nd5 {[%emt 0:00:30]} Bf8 {[%emt 0:00:34]} 31. Nxb4 {[%emt 0:02:17]} Rxc5 {[%emt 0:00:09]} 32. Nd3 {[%emt 0:02:10]} Rd5 {[%emt 0:02:30]} 33. Rc3 {[%emt 0:03:47]} e4 {[%emt 0:00:41]} 34. Nf4 {[%emt 0:00:35]} Rd2 {[%emt 0:01:03]} 35. Rc4 {[%emt 0:00:39]} e3 {[%emt 0:01:13]} 36. Rc3 {[%emt 0:01:01]} Bg7 {[%emt 0:05:04]} 37. Rc8+ {[%emt 0:00:21]} Kh7 {[%emt 0:00:03]} 38. Kf1 {[%emt 0:01:59]} Rf2+ {[%emt 0:00:57]} 39. Ke1 {[%emt 0:00:10]} Rxb2 {[%emt 0:00:15]} 40. Rc7 {[%emt 0:00:26]} Kg8 {[%emt 0:01:20]} 41. Rc8+ {[%emt 0:00:09]} Kh7 {[%emt 0:00:02]} 42. Rc7 {[%emt 0:00:05]} Kg8 {[%emt 0:00:09]} 43. Rc8+ {[%emt 0:00:04]} Bf8 {[%emt 0:00:04]} 44. Nd5 {[%emt 0:00:47]} Kg7 {[%emt 0:01:12]} 45. Nxe3 {[%emt 0:01:25]} Rxh2 {[%emt 0:00:42]} 46. g4 {[%emt 0:03:26]} Bb4+ {[%emt 0:00:52]} 47. Kd1 {[%emt 0:00:49]} Rd2+ {[%emt 0:00:32]} 48. Kc1 {[%emt 0:00:09]} Rd3 {[%emt 0:00:14]} 49. Nc2 {[%emt 0:01:21]} Rxb3 {[%emt 0:00:22]} 50. Rc4 {[%emt 0:00:09]} Bd6 {[%emt 0:00:56]} 51. Kd2 {[%emt 0:00:08]} Rg3 {[%emt 0:00:19]} 52. Ke2 {[%emt 0:00:06]} Rg2+ {[%emt 0:00:33]} 53. Kf3 {[%emt 0:00:08]} Rg3+ {[%emt 0:00:16]} 54. Kf2 {[%emt 0:00:28]} Rd3 {[%emt 0:00:14]} 55. Ke2 {[%emt 0:00:13]} Rb3 {[%emt 0:00:39]} 56. Ne3 {[%emt 0:00:22]} Be5 {[%emt 0:00:45]} 57. Re4 {[%emt 0:00:07]} Bf6 {[%emt 0:00:29]} 58. Nc4 {[%emt 0:00:18]} Rh3 {[%emt 0:01:28]} 59. Nd6 {[%emt 0:00:07]} Bg5 {[%emt 0:00:52]} 60. Kf2 {[%emt 0:01:30]} Rd3 {[%emt 0:00:44]} 61. Nc4 {[%emt 0:00:34]} Bf6 {[%emt 0:00:13]} 62. Kg2 {[%emt 0:00:10]} Rd5 {[%emt 0:00:39]} 63. Kf3 {[%emt 0:01:08]} h5 {[%emt 0:00:31]} 64. gxh5 {[%emt 0:00:06]} Rxh5 {[%emt 0:00:09]} 65. Nd6 {[%emt 0:00:04]} Be5 {[%emt 0:01:05]} 66. Nc4 {[%emt 0:00:38]} Kf6 {[%emt 0:00:44]} 67. Ne3 {[%emt 0:00:33]} Bd6 {[%emt 0:00:32]} 68. Ng4+ {[%emt 0:01:12]} Kg7 {[%emt 0:00:08]} 69. Rd4 {[%emt 0:00:11]} Rf5+ {[%emt 0:00:27]} 70. Kg2 {[%emt 0:00:04]} Bc5 {[%emt 0:00:30]} 71. Rd7 {[%emt 0:00:50]} Bb4 {[%emt 0:00:45]} 72. Ne3 {[%emt 0:00:13]} Re5 {[%emt 0:00:29]} 73. Ng4 {[%emt 0:00:17]} Re7 {[%emt 0:00:39]} 74. Rd4 {[%emt 0:00:53]} Bc5 {[%emt 0:00:10]} 75. Rc4 {[%emt 0:00:04]} Bb6 {[%emt 0:00:31]} 76. Rc6 {[%emt 0:00:16]} Bd4 {[%emt 0:00:18]} 77. Rd6 {[%emt 0:00:13]} Be5 {[%emt 0:00:30]} 78. Rd5 {[%emt 0:00:46]} Bc7 {[%emt 0:00:02]} 79. Kf3 {[%emt 0:00:10]} f5 {[%emt 0:00:35]} 80. Ne3 {[%emt 0:00:26]} Rf7 {[%emt 0:00:37]} 81. Rb5 {[%emt 0:00:34]} Kh6 {[%emt 0:01:31]} 82. Rb7 {[%emt 0:00:18]} Kg7 {[%emt 0:00:25]} 83. Rb5 {[%emt 0:01:32]} Bd8 {[%emt 0:00:51]} 84. Nc4 {[%emt 0:01:28]} Bf6 {[%emt 0:00:31]} 85. Nd6 {[%emt 0:00:14]} Rd7 {[%emt 0:00:24]} 86. Nxf5+ {[%emt 0:00:17]} gxf5 {[%emt 0:00:05]} 87. Rxf5 {[%emt 0:00:03]} Kg6 {[%emt 0:00:07]} 88. Rb5 {[%emt 0:00:14]} Rd3+ {[%emt 0:00:16]} 89. Ke4 {[%emt 0:00:07]} Rd4+ {[%emt 0:00:07]} 90. Ke3 {[%emt 0:00:05]} Rh4 {[%emt 0:00:05]} 91. Kf3 {[%emt 0:00:10]} Kf7 {[%emt 0:00:21]} 92. Kg3 {[%emt 0:00:09]} Ra4 {[%emt 0:00:08]} 93. Kf3 {[%emt 0:00:05]} Ke6 {[%emt 0:00:04]} 94. Rh5 {[%emt 0:00:40]} Be5 {[%emt 0:00:28]} 95. Rh6+ {[%emt 0:00:06]} Kd5 {[%emt 0:00:05]} 96. Rh1 {[%emt 0:00:39]} Ra3+ {[%emt 0:01:46]} 97. Kg4 {[%emt 0:00:10]} Re3 {[%emt 0:00:02]} 98. Kf5 {[%emt 0:00:17]} Bd4 {[%emt 0:00:41]} 99. Rh5 {[%emt 0:00:39]} Rf3+ {[%emt 0:00:27]} 100. Kg4+ {[%emt 0:00:06]} Ke4 {[%emt 0:00:02]} 101. Rg5 {[%emt 0:00:54]} Rf1 {[%emt 0:01:25]} 102. Kh5 {[%emt 0:00:45]} Bf6 {[%emt 0:00:27]} 103. Rg4+ {[%emt 0:00:25]} Kf5 {[%emt 0:00:30]} 104. Rg5+ {[%emt 0:00:02]} Ke6 {[%emt 0:00:04]} 105. Rg2 {[%emt 0:00:26]} Rf4 {[%emt 0:00:47]} 106. Kg6 {[%emt 0:00:24]} Rf3 {[%emt 0:01:59]} 107. Re2+ {[%emt 0:00:16]} Be5 {[%emt 0:00:08]} 108. Rg2 {[%emt 0:00:27]} Rf8 {[%emt 0:00:13]} 109. Rg5 {[%emt 0:01:11]} Bf6 {[%emt 0:01:28]} 110. Rg4 {[%emt 0:00:07]} Rh8 {[%emt 0:00:35]} 111. Re4+ {[%emt 0:00:15]} Be5 {[%emt 0:00:00]} 112. Rg4 {[%emt 0:00:11]} Rh1 {[%emt 0:00:58]} 113. Rg2 {[%emt 0:00:29]} Ra1 {[%emt 0:00:46]} 114. Rg5 {[%emt 0:00:19]} Re1 {[%emt 0:00:29]} 115. Rg2 {[%emt 0:00:15]} Rb1 {[%emt 0:00:18]} 116. Rg5 {[%emt 0:00:11]} Rb8 {[%emt 0:00:18]} 117. Rg4 {[%emt 0:00:09]} Rf8 {[%emt 0:00:27]} 118. Rg5 {[%emt 0:00:28]} Bf4 {[%emt 0:01:00]} 119. Rg4 {[%emt 0:00:23]} Rf6+ {[%emt 0:00:09]} 120. Kh7 {[%emt 0:00:25]} Kf5 {[%emt 0:00:23]} 121. Rg7 {[%emt 0:00:26]} Rh6+ {[%emt 0:00:27]} 122. Kg8 {[%emt 0:00:08]} Be5 {[%emt 0:00:03]} 123. Rf7+ {[%emt 0:00:28]} Bf6 {[%emt 0:00:45]} 124. Rh7 {[%emt 0:00:10]} Rg6+ {[%emt 0:00:01]} 125. Kf8 {[%emt 0:00:09]} Rg1 {[%emt 0:00:48]} 126. Ke8 {[%emt 0:02:52]} Ra1 {[%emt 0:01:05]} 127. Rb7 {[%emt 0:00:20]} Rd1 {[%emt 0:00:34]} 128. Rd7 {[%emt 0:00:08]} Re1+ {[%emt 0:00:27]} 129. Kf7 {[%emt 0:00:35]} Be5 {[%emt 0:00:20]} 130. Ke7 {[%emt 0:00:31]} Bc7+ {[%emt 0:00:16]} 131. Kf7 {[%emt 0:00:08]} Rh1 {[%emt 0:00:07]} 132. Kf8 {[%emt 0:00:40]} Be5 {[%emt 0:00:28]} 133. Kf7 {[%emt 0:00:41]} Rh6 {[%emt 0:00:40]} 134. Kf8 {[%emt 0:00:26]} Ke6 {[%emt 0:00:28]} 135. Re7+ {[%emt 0:00:11]} Kd6 {[%emt 0:00:05]} 136. Re8 {[%emt 0:00:38]} Rh7 {[%emt 0:01:09]} 137. Kg8 {[%emt 0:00:10]} Rg7+ {[%emt 0:00:23]} 138. Kf8 {[%emt 0:00:05]} Bf6 {[%emt 0:00:06]} 139. Re2 {[%emt 0:00:47]} Ra7 {[%emt 0:00:00]} 1/2-1/2

[Event "ONJK-A 2019"]
[Site "Borne"]
[Date "2019.08.05"]
[Round "1.3"]
[White "Baselmans, Luuk"]
[Black "De Vries, Tobias"]
[Result "1-0"]
[ECO "B30"]
[WhiteElo "2212"]
[BlackElo "1868"]
[Annotator "NA"]
[PlyCount "89"]
[EventDate "2019.08.05"]
[EventType "swiss"]
[EventCountry "NED"]
[SourceTitle "playchess.com"]
[Source "ChessBase"]
[SourceQuality "1"]
[TimeControl "5400+30"]

1. e4 {[%emt 0:00:00]} c5 {[%emt 0:00:00]} 2. Nf3 {[%emt 0:00:00]} Nc6 {[%emt 0:00:00]} 3. Bb5 {[%emt 0:00:00]} e6 {[%emt 0:00:00]} 4. Bxc6 {[%emt 0:00:00]} bxc6 {[%emt 0:00:40]} 5. b3 {[%emt 0:00:20]} d5 {[%emt 0:00:24]} 6. d3 {[%emt 0:00:53]} Nf6 {[%emt 0:00:53]} 7. Nbd2 {[%emt 0:00:35]} Be7 {[%emt 0:00:32]} 8. Bb2 {[%emt 0:00:52]} O-O {[%emt 0:00:43]} 9. O-O {[%emt 0:00:40]} Nd7 {[%emt 0:07:28]} 10. Ne5 {[%emt 0:04:51]} Nxe5 {[%emt 0:00:24]} 11. Bxe5 {[%emt 0:00:06]} f6 {[%emt 0:17:00]} 12. Bb2 {[%emt 0:01:53]} Bd6 {[%emt 0:01:09]} 13. f4 {[%emt 0:01:49]} Qc7 {[%emt 0:01:03]} 14. Qf3 {[%emt 0:03:07]} Ba6 {[%emt 0:21:51]} 15. Kh1 {[%emt 0:03:19]} Rab8 {[%emt 0:03:54]} 16. Bc3 {[%emt 0:11:06]} Rbe8 {[%emt 0:14:00]} 17. a4 {[%emt 0:01:51]} f5 {[%emt 0:03:17]} 18. e5 {[%emt 0:06:49]} Be7 {[%emt 0:00:04]} 19. Qh5 {[%emt 0:01:42]} g6 {[%emt 0:05:29]} 20. Qh6 {[%emt 0:02:59]} Rf7 {[%emt 0:00:42]} 21. Rad1 {[%emt 0:02:25]} Bf8 {[%emt 0:01:09]} 22. Qh4 {[%emt 0:00:27]} Qe7 {[%emt 0:00:40]} 23. Qg3 {[%emt 0:04:00]} Rg7 {[%emt 0:00:53]} 24. Nf3 {[%emt 0:00:25]} h6 {[%emt 0:01:17]} 25. Qh3 {[%emt 0:01:35]} Rh7 {[%emt 0:09:26]} 26. g4 {[%emt 0:01:25]} Qf7 {[%emt 0:00:49]} 27. Rg1 {[%emt 0:01:44]} fxg4 {[%emt 0:02:29]} 28. Rxg4 {[%emt 0:02:23]} h5 {[%emt 0:03:26]} 29. Rg3 {[%emt 0:01:15]} Bh6 {[%emt 0:00:50]} 30. Qxh5 {[%emt 0:03:24]} Bxf4 {[%emt 0:00:45]} 31. Qxg6+ {[%emt 0:00:51]} Rg7 {[%emt 0:00:55]} 32. Qxf7+ {[%emt 0:00:54]} Kxf7 {[%emt 0:00:07]} 33. Rxg7+ {[%emt 0:00:26]} Kxg7 {[%emt 0:00:06]} 34. Rg1+ {[%emt 0:00:11]} Kf7 {[%emt 0:00:52]} 35. Nh4 {[%emt 0:01:55]} Rh8 {[%emt 0:02:05]} 36. Rg4 {[%emt 0:01:16]} Be3 {[%emt 0:00:01]} 37. Nf3 {[%emt 0:04:25]} Rh5 {[%emt 0:01:05]} 38. Kg2 {[%emt 0:00:54]} Rf5 {[%emt 0:01:11]} 39. Be1 {[%emt 0:02:19]} Bb7 {[%emt 0:01:16]} 40. Bf2 {[%emt 0:00:45]} Bh6 {[%emt 0:00:28]} 41. Bxc5 {[%emt 0:00:18]} Bg7 {[%emt 0:00:28]} 42. Ng5+ {[%emt 0:01:24]} Ke8 {[%emt 0:00:12]} 43. d4 {[%emt 0:01:15]} Bh6 {[%emt 0:00:55]} 44. Nxe6 {[%emt 0:00:25]} Ba6 {[%emt 0:00:22]} 45. Nc7+ {[%emt 0:00:10]} 1-0

[Event "ONJK-A 2019"]
[Site "Borne"]
[Date "2019.08.05"]
[Round "1.4"]
[White "Hempler, Poul"]
[Black "Van Malder, Dries"]
[Result "0-1"]
[ECO "B22"]
[WhiteElo "1856"]
[BlackElo "2178"]
[Annotator "NA"]
[PlyCount "62"]
[EventDate "2019.08.05"]
[EventType "swiss"]
[EventCountry "NED"]
[SourceTitle "playchess.com"]
[Source "ChessBase"]
[SourceQuality "1"]
[TimeControl "5400+30"]

1. e4 {[%emt 0:00:00]} c5 {[%emt 0:00:00]} 2. c3 {[%emt 0:00:00]} d5 {[%emt 0:00:00]} 3. exd5 {[%emt 0:00:00]} Qxd5 {[%emt 0:00:00]} 4. d4 {[%emt 0:00:00]} Nc6 {[%emt 0:00:52]} 5. Nf3 {[%emt 0:00:03]} Nf6 {[%emt 0:00:07]} 6. Be2 {[%emt 0:00:56]} cxd4 {[%emt 0:00:07]} 7. cxd4 {[%emt 0:00:09]} e6 {[%emt 0:00:07]} 8. Nc3 {[%emt 0:01:11]} Qd6 {[%emt 0:00:06]} 9. O-O {[%emt 0:01:17]} Be7 {[%emt 0:00:45]} 10. h3 {[%emt 0:07:11]} O-O {[%emt 0:03:37]} 11. Be3 {[%emt 0:00:24]} b6 {[%emt 0:02:55]} 12. Qb3 {[%emt 0:03:31]} Bb7 {[%emt 0:03:01]} 13. Rfd1 {[%emt 0:01:40]} Rac8 {[%emt 0:03:39]} 14. Rd2 {[%emt 0:01:54]} Rfd8 {[%emt 0:02:17]} 15. Rad1 {[%emt 0:02:26]} Nb4 {[%emt 0:11:10]} 16. Ne5 {[%emt 0:07:50]} Nbd5 {[%emt 0:04:17]} 17. Rc2 {[%emt 0:10:55]} Nd7 {[%emt 0:22:20]} 18. Nd3 {[%emt 0:17:04]} Nxe3 {[%emt 0:03:05]} 19. fxe3 {[%emt 0:00:10]} Bg5 {[%emt 0:00:16]} 20. Ne1 {[%emt 0:11:01]} Bxe3+ {[%emt 0:01:09]} 21. Kh1 {[%emt 0:00:09]} Qg3 {[%emt 0:04:40]} 22. Bf3 {[%emt 0:03:43]} Bf4 {[%emt 0:01:19]} 23. Kg1 {[%emt 0:01:20]} Be3+ {[%emt 0:04:11]} 24. Kh1 {[%emt 0:00:31]} Bf4 {[%emt 0:08:15]} 25. Kg1 {[%emt 0:00:06]} Qh2+ {[%emt 0:03:06]} 26. Kf1 {[%emt 0:03:26]} Ba6+ {[%emt 0:05:00]} 27. Be2 {[%emt 0:05:24]} Be3 {[%emt 0:02:11]} 28. Bxa6 {[%emt 0:03:37]} Qg1+ {[%emt 0:00:30]} 29. Ke2 {[%emt 0:00:06]} Qf2+ {[%emt 0:00:05]} 30. Kd3 {[%emt 0:00:06]} Ne5+ {[%emt 0:00:08]} 31. Ke4 {[%emt 0:00:35]} Qf4# {[%emt 0:00:07]} 0-1

[Event "ONJK-A 2019"]
[Site "Borne"]
[Date "2019.08.05"]
[Round "1.5"]
[White "Emans, Job"]
[Black "Vitharana, Annelies"]
[Result "1-0"]
[ECO "E18"]
[WhiteElo "1989"]
[BlackElo "1768"]
[Annotator "NA"]
[PlyCount "99"]
[EventDate "2019.08.05"]
[EventType "swiss"]
[EventCountry "NED"]
[SourceTitle "playchess.com"]
[Source "ChessBase"]
[SourceQuality "1"]
[TimeControl "5400+30"]

1. d4 {[%emt 0:00:00]} Nf6 {[%emt 0:00:00]} 2. c4 {[%emt 0:00:00]} e6 {[%emt 0:00:00]} 3. Nf3 {[%emt 0:00:00]} b6 {[%emt 0:00:00]} 4. g3 {[%emt 0:00:01]} Bb7 {[%emt 0:00:27]} 5. Bg2 {[%emt 0:00:18]} Be7 {[%emt 0:00:17]} 6. O-O {[%emt 0:00:26]} O-O {[%emt 0:00:21]} 7. Nc3 {[%emt 0:00:26]} d5 {[%emt 0:01:08]} 8. Ne5 {[%emt 0:02:43]} Nbd7 {[%emt 0:05:32]} 9. e3 {[%emt 0:06:24]} Ne4 {[%emt 0:16:40]} 10. Nxe4 {[%emt 0:07:13]} dxe4 {[%emt 0:00:44]} 11. Qc2 {[%emt 0:00:42]} f5 {[%emt 0:06:33]} 12. Nxd7 {[%emt 0:02:33]} Qxd7 {[%emt 0:00:14]} 13. b3 {[%emt 0:00:17]} Rad8 {[%emt 0:09:01]} 14. Bb2 {[%emt 0:01:45]} Bf6 {[%emt 0:03:12]} 15. Rfd1 {[%emt 0:02:44]} Qe7 {[%emt 0:03:47]} 16. a4 {[%emt 0:06:39]} Qd7 {[%emt 0:05:57]} 17. Rac1 {[%emt 0:03:10]} c6 {[%emt 0:16:03]} 18. c5 {[%emt 0:15:05]} Rc8 {[%emt 0:03:52]} 19. Bf1 {[%emt 0:02:56]} b5 {[%emt 0:03:31]} 20. b4 {[%emt 0:01:43]} a6 {[%emt 0:03:52]} 21. Bg2 {[%emt 0:04:27]} Ra8 {[%emt 0:02:06]} 22. f3 {[%emt 0:01:40]} Bg5 {[%emt 0:01:59]} 23. Re1 {[%emt 0:02:12]} exf3 {[%emt 0:03:59]} 24. Bxf3 {[%emt 0:00:04]} Qc7 {[%emt 0:02:45]} 25. a5 {[%emt 0:03:20]} Bc8 {[%emt 0:01:02]} 26. Rcd1 {[%emt 0:00:36]} Bd7 {[%emt 0:01:10]} 27. e4 {[%emt 0:02:35]} f4 {[%emt 0:01:47]} 28. g4 {[%emt 0:00:52]} Be8 {[%emt 0:03:14]} 29. d5 {[%emt 0:01:15]} e5 {[%emt 0:01:56]} 30. d6 {[%emt 0:00:38]} Qd7 {[%emt 0:01:03]} 31. Bxe5 {[%emt 0:00:31]} Bf7 {[%emt 0:00:52]} 32. Ba1 {[%emt 0:01:13]} Bc4 {[%emt 0:00:19]} 33. e5 {[%emt 0:01:57]} Bh4 {[%emt 0:00:33]} 34. Re4 {[%emt 0:03:44]} Bd5 {[%emt 0:00:20]} 35. Rxd5 {[%emt 0:00:04]} cxd5 {[%emt 0:00:05]} 36. Rd4 {[%emt 0:00:06]} Rae8 {[%emt 0:02:33]} 37. Rxd5 {[%emt 0:01:08]} Rc8 {[%emt 0:01:01]} 38. Rd1 {[%emt 0:01:21]} Kh8 {[%emt 0:00:31]} 39. c6 {[%emt 0:03:54]} Qe6 {[%emt 0:00:14]} 40. c7 {[%emt 0:00:52]} h5 {[%emt 0:00:46]} 41. h3 {[%emt 0:00:36]} Qd7 {[%emt 0:00:28]} 42. Qg6 {[%emt 0:01:19]} Qf7 {[%emt 0:00:33]} 43. Qxf7 {[%emt 0:00:22]} Rxf7 {[%emt 0:00:05]} 44. Bb7 {[%emt 0:00:08]} Rff8 {[%emt 0:00:34]} 45. Bxc8 {[%emt 0:01:03]} Rxc8 {[%emt 0:00:05]} 46. Bd4 {[%emt 0:00:25]} hxg4 {[%emt 0:00:48]} 47. hxg4 {[%emt 0:00:04]} Kg8 {[%emt 0:00:24]} 48. Bb6 {[%emt 0:00:02]} Re8 {[%emt 0:00:36]} 49. d7 {[%emt 0:00:16]} Rxe5 {[%emt 0:00:23]} 50. c8=Q+ {[%emt 0:00:06]} 1-0

[Event "ONJK-A 2019"]
[Site "Borne"]
[Date "2019.08.05"]
[Round "1.6"]
[White "Vleming, Stefan"]
[Black "Van Roon, Sjoerd"]
[Result "1-0"]
[ECO "A68"]
[WhiteElo "1760"]
[BlackElo "2072"]
[Annotator "NA"]
[PlyCount "47"]
[EventDate "2019.08.05"]
[EventType "swiss"]
[EventCountry "NED"]
[SourceTitle "playchess.com"]
[Source "ChessBase"]
[SourceQuality "1"]
[TimeControl "5400+30"]

1. d4 {[%emt 0:00:00]} Nf6 {[%emt 0:00:00]} 2. c4 {[%emt 0:00:00]} g6 {[%emt 0:00:00]} 3. Nc3 {[%emt 0:00:00]} Bg7 {[%emt 0:00:00]} 4. e4 {[%emt 0:00:00]} O-O {[%emt 0:00:00]} 5. f4 {[%emt 0:00:42]} d6 {[%emt 0:00:42]} 6. Nf3 {[%emt 0:00:04]} c5 {[%emt 0:04:45]} 7. d5 {[%emt 0:02:12]} e6 {[%emt 0:03:38]} 8. Bd3 {[%emt 0:07:02]} exd5 {[%emt 0:00:45]} 9. cxd5 {[%emt 0:04:12]} Re8 {[%emt 0:05:09]} 10. O-O {[%emt 0:06:05]} c4 {[%emt 0:18:00]} 11. Bb1 {[%emt 0:12:04]} b5 {[%emt 0:03:12]} 12. e5 {[%emt 0:19:19]} Ng4 {[%emt 0:02:30]} 13. h3 {[%emt 0:10:19]} Nh6 {[%emt 0:02:48]} 14. Ne4 {[%emt 0:06:17]} dxe5 {[%emt 0:05:31]} 15. fxe5 {[%emt 0:01:19]} Nf5 {[%emt 0:00:19]} 16. g4 {[%emt 0:07:59]} Nh4 {[%emt 0:14:43]} 17. Bg5 {[%emt 0:10:06]} Nxf3+ {[%emt 0:05:42]} 18. Qxf3 {[%emt 0:00:39]} Qc7 {[%emt 0:00:37]} 19. d6 {[%emt 0:06:42]} Qb7 {[%emt 0:06:34]} 20. Nf6+ {[%emt 0:00:52]} Bxf6 {[%emt 0:00:18]} 21. Qxf6 {[%emt 0:00:03]} Re6 {[%emt 0:02:00]} 22. Qd8+ {[%emt 0:00:06]} Kg7 {[%emt 0:00:03]} 23. Bf6+ {[%emt 0:00:19]} Kh6 {[%emt 0:00:03]} 24. Qf8# {[%emt 0:00:09]} 1-0

[Event "ONJK-A 2019"]
[Site "Borne"]
[Date "2019.08.05"]
[Round "1.7"]
[White "Baselmans, Sam"]
[Black "Hofstra, Tijmen"]
[Result "1-0"]
[ECO "B23"]
[WhiteElo "2064"]
[BlackElo "1732"]
[Annotator "NA"]
[PlyCount "63"]
[EventDate "2019.08.05"]
[EventType "swiss"]
[EventCountry "NED"]
[SourceTitle "playchess.com"]
[Source "ChessBase"]
[SourceQuality "1"]
[TimeControl "5400+30"]

1. e4 {[%emt 0:00:00]} c5 {[%emt 0:00:00]} 2. Nc3 {[%emt 0:00:00]} a6 {[%emt 0:00:10]} 3. Nge2 {[%emt 0:00:00]} b5 {[%emt 0:02:53]} 4. g3 {[%emt 0:00:07]} Bb7 {[%emt 0:00:06]} 5. Bg2 {[%emt 0:00:13]} Nf6 {[%emt 0:00:10]} 6. d3 {[%emt 0:00:23]} d6 {[%emt 0:01:19]} 7. O-O {[%emt 0:00:40]} e5 {[%emt 0:01:42]} 8. f4 {[%emt 0:00:26]} Qb6 {[%emt 0:00:33]} 9. h3 {[%emt 0:04:26]} Nbd7 {[%emt 0:00:20]} 10. Be3 {[%emt 0:00:13]} b4 {[%emt 0:01:24]} 11. Na4 {[%emt 0:00:50]} Qa5 {[%emt 0:00:11]} 12. b3 {[%emt 0:00:37]} Be7 {[%emt 0:00:13]} 13. Nb2 {[%emt 0:00:49]} d5 {[%emt 0:00:12]} 14. fxe5 {[%emt 0:04:58]} Nxe5 {[%emt 0:00:43]} 15. Rf5 {[%emt 0:00:31]} Qc7 {[%emt 0:01:05]} 16. Bf4 {[%emt 0:16:11]} Bd6 {[%emt 0:00:12]} 17. exd5 {[%emt 0:01:31]} Nxd5 {[%emt 0:00:45]} 18. Nc4 {[%emt 0:00:21]} f6 {[%emt 0:02:25]} 19. d4 {[%emt 0:11:49]} Nxc4 {[%emt 0:04:22]} 20. Bxd5 {[%emt 0:00:46]} Nb2 {[%emt 0:06:33]} 21. Qc1 {[%emt 0:05:02]} Bxf4 {[%emt 0:00:34]} 22. Nxf4 {[%emt 0:01:00]} Qd7 {[%emt 0:00:05]} 23. Qe3+ {[%emt 0:01:31]} Kd8 {[%emt 0:01:22]} 24. Ne6+ {[%emt 0:00:13]} Kc8 {[%emt 0:00:07]} 25. Bxb7+ {[%emt 0:00:08]} Qxb7 {[%emt 0:00:14]} 26. Rxc5+ {[%emt 0:00:09]} Kd7 {[%emt 0:00:34]} 27. Rc7+ {[%emt 0:00:22]} Qxc7 {[%emt 0:00:05]} 28. Nxc7 {[%emt 0:00:05]} Kxc7 {[%emt 0:00:10]} 29. Qe7+ {[%emt 0:01:25]} Kc6 {[%emt 0:00:30]} 30. Qxb4 {[%emt 0:00:33]} Rhe8 {[%emt 0:00:23]} 31. Re1 {[%emt 0:00:38]} Kd5 {[%emt 0:01:22]} 32. Qc5# {[%emt 0:00:06]} 1-0